[Event "5th EKA IIFL Investment 2019"]
[Site "Mumbai"]
[Date "2019.12.30"]
[Round "1.17"]
[White "Nigmatov, Ortik"]
[Black "Ziatdinov, Raset"]
[Result "0-1"]
[ECO "A06"]
[WhiteElo "2474"]
[BlackElo "2204"]
[Annotator "ChessBase"]
[PlyCount "158"]
[EventDate "2019.12.30"]
[EventType "swiss"]
[EventCountry "IND"]
[SourceTitle "playchess.com"]
[Source "ChessBase"]
[SourceQuality "1"]
[TimeControl "40/5400+30:1800+30"]

1. Nf3 {[%emt 0:00:00]} d5 {[%emt 0:00:00]} 2. e3 {[%emt 0:00:00]} Nc6 {[%emt 0:02:02]} 3. c4 {[%emt 0:02:07]} d4 {[%emt 0:00:30]} 4. d3 {[%emt 0:03:34]} e5 {[%emt 0:00:14]} 5. Be2 {[%emt 0:00:46]} Nf6 {[%emt 0:02:43]} 6. exd4 {[%emt 0:06:06]} exd4 {[%emt 0:01:05]} 7. O-O {[%emt 0:00:09]} Be7 {[%emt 0:00:22]} 8. Na3 {[%emt 0:00:39]} O-O {[%emt 0:00:19]} 9. Nc2 {[%emt 0:00:03]} Re8 {[%emt 0:01:25]} 10. a3 {[%emt 0:02:10]} a5 {[%emt 0:00:06]} 11. b3 {[%emt 0:00:07]} Bc5 {[%emt 0:01:05]} 12. Rb1 {[%emt 0:06:49]} Qd6 {[%emt 0:00:33]} 13. h3 {[%emt 0:08:58]} Bf5 {[%emt 0:11:42]} 14. Nh4 {[%emt 0:00:21]} Bd7 {[%emt 0:00:52]} 15. Bf3 {[%emt 0:02:28]} Rab8 {[%emt 0:00:35]} 16. Bxc6 {[%emt 0:12:39]} bxc6 {[%emt 0:00:06]} 17. Bd2 {[%emt 0:05:13]} Bb6 {[%emt 0:01:48]} 18. Qf3 {[%emt 0:06:40]} c5 {[%emt 0:02:10]} 19. Bf4 {[%emt 0:05:37]} Qc6 {[%emt 0:02:35]} 20. Rfe1 {[%emt 0:01:43]} Rxe1+ {[%emt 0:13:15]} 21. Rxe1 {[%emt 0:00:15]} Qxf3 {[%emt 0:08:15]} 22. Nxf3 {[%emt 0:00:05]} Bf5 {[%emt 0:00:09]} 23. Ne5 {[%emt 0:01:28]} Re8 {[%emt 0:11:07]} 24. g4 {[%emt 0:01:51]} Bc8 {[%emt 0:00:08]} 25. Bd2 {[%emt 0:03:25]} Bb7 {[%emt 0:03:50]} 26. f4 {[%emt 0:05:01]} Re7 {[%emt 0:02:09]} 27. Kf2 {[%emt 0:00:25]} h5 {[%emt 0:01:21]} 28. Rg1 {[%emt 0:04:42]} hxg4 {[%emt 0:00:35]} 29. hxg4 {[%emt 0:00:05]} Nd7 {[%emt 0:00:45]} 30. Nxd7 {[%emt 0:02:58]} Rxd7 {[%emt 0:00:03]} 31. Ne1 {[%emt 0:02:01]} Rd8 {[%emt 0:01:05]} 32. a4 {[%emt 0:00:26]} Rb8 {[%emt 0:01:19]} 33. Nf3 {[%emt 0:01:14]} Bc6 {[%emt 0:00:39]} 34. Ne5 {[%emt 0:02:59]} Be8 {[%emt 0:00:07]} 35. g5 {[%emt 0:00:55]} c6 {[%emt 0:01:50]} 36. Ng4 {[%emt 0:04:50]} Bd8 {[%emt 0:00:45]} 37. Rb1 {[%emt 0:00:42]} Kf8 {[%emt 0:01:25]} 38. Kf3 {[%emt 0:00:49]} f6 {[%emt 0:00:57]} 39. gxf6 {[%emt 0:07:59]} gxf6 {[%emt 0:00:06]} 40. Nf2 {[%emt 0:00:00]} Bh5+ {[%emt 0:00:00]} 41. Kg2 {[%emt 0:11:20]} f5 {[%emt 0:01:52]} 42. Rh1 {[%emt 0:00:52]} Bg6 {[%emt 0:01:07]} 43. Bxa5 {[%emt 0:00:43]} Bf6 {[%emt 0:02:19]} 44. Rb1 {[%emt 0:03:03]} Bh5 {[%emt 0:06:29]} 45. Bc7 {[%emt 0:04:00]} Rb7 {[%emt 0:00:42]} 46. Bd6+ {[%emt 0:00:11]} Kg8 {[%emt 0:02:59]} 47. Kf1 {[%emt 0:00:36]} Be7 {[%emt 0:10:16]} 48. Be5 {[%emt 0:01:33]} Bd8 {[%emt 0:00:35]} 49. Kg2 {[%emt 0:06:07]} Ba5 {[%emt 0:01:52]} 50. Rh1 {[%emt 0:02:27]} Rh7 {[%emt 0:00:45]} 51. Rh3 {[%emt 0:01:45]} Kf7 {[%emt 0:03:50]} 52. Rg3 {[%emt 0:01:05]} Be1 {[%emt 0:06:44]} 53. Rh3 {[%emt 0:02:03]} Kg6 {[%emt 0:02:15]} 54. Rh1 {[%emt 0:01:13]} Bd2 {[%emt 0:01:06]} 55. Bd6 {[%emt 0:01:25]} Rd7 {[%emt 0:01:39]} 56. Bxc5 {[%emt 0:00:34]} Bxf4 {[%emt 0:00:07]} 57. Re1 {[%emt 0:00:21]} Kf6 {[%emt 0:00:59]} 58. a5 {[%emt 0:00:39]} Bd2 {[%emt 0:00:18]} 59. Rh1 {[%emt 0:00:37]} Be2 {[%emt 0:00:20]} 60. Rh4 {[%emt 0:00:20]} Be3 {[%emt 0:01:36]} 61. Rh3 {[%emt 0:00:40]} f4 {[%emt 0:04:52]} 62. Ne4+ {[%emt 0:00:31]} Ke5 {[%emt 0:00:07]} 63. a6 {[%emt 0:00:35]} Rg7+ {[%emt 0:01:34]} 64. Kh2 {[%emt 0:00:25]} Bxd3 {[%emt 0:01:24]} 65. Nd2 {[%emt 0:00:06]} Bxd2 {[%emt 0:04:16]} 66. Rxd3 {[%emt 0:00:08]} Be3 {[%emt 0:00:12]} 67. a7 {[%emt 0:00:43]} Rg8 {[%emt 0:00:37]} 68. b4 {[%emt 0:00:22]} Ke4 {[%emt 0:00:32]} 69. Ra3 {[%emt 0:00:43]} Rh8+ {[%emt 0:01:41]} 70. Kg2 {[%emt 0:00:01]} f3+ {[%emt 0:00:09]} 71. Kg3 {[%emt 0:00:05]} Rg8+ {[%emt 0:00:08]} 72. Kh4 {[%emt 0:01:24]} f2 {[%emt 0:00:12]} 73. Ra1 {[%emt 0:00:08]} Kf3 {[%emt 0:00:27]} 74. Kh5 {[%emt 0:00:57]} Rg5+ {[%emt 0:03:06]} 75. Kh4 {[%emt 0:00:08]} Rg6 {[%emt 0:00:14]} 76. Bf8 {[%emt 0:00:35]} Rg8 {[%emt 0:00:14]} 77. Bh6 {[%emt 0:01:14]} Rh8 {[%emt 0:01:21]} 78. Ra5 {[%emt 0:00:29]} Rxh6+ {[%emt 0:00:19]} 79. Rh5 {[%emt 0:00:08]} f1=Q {[%emt 0:00:09]} 0-1

[Event "5th EKA IIFL Investment 2019"]
[Site "Mumbai"]
[Date "2019.12.30"]
[Round "1.18"]
[White "Utsab Chatterjee"]
[Black "Taher, Yoseph Theolifus"]
[Result "0-1"]
[ECO "B28"]
[WhiteElo "2200"]
[BlackElo "2469"]
[Annotator "ChessBase"]
[PlyCount "52"]
[EventDate "2019.12.30"]
[EventType "swiss"]
[EventCountry "IND"]
[SourceTitle "playchess.com"]
[Source "ChessBase"]
[SourceQuality "1"]
[TimeControl "40/5400+30:1800+30"]

1. e4 {[%emt 0:00:10]} c5 {[%emt 0:00:30]} 2. Nf3 {[%emt 0:00:45]} a6 {[%emt 0:00:25]} 3. c4 {[%emt 0:00:53]} e6 {[%emt 0:00:16]} 4. Nc3 {[%emt 0:00:23]} Nc6 {[%emt 0:00:07]} 5. d4 {[%emt 0:00:12]} cxd4 {[%emt 0:00:04]} 6. Nxd4 {[%emt 0:00:11]} Qc7 {[%emt 0:00:04]} 7. Nc2 {[%emt 0:02:46]} Nf6 {[%emt 0:00:10]} 8. Be2 {[%emt 0:00:29]} Ne5 {[%emt 0:00:44]} 9. b3 {[%emt 0:01:00]} Ng6 {[%emt 0:02:54]} 10. O-O {[%emt 0:07:47]} Bd6 {[%emt 0:00:26]} 11. g3 {[%emt 0:03:24]} b5 {[%emt 0:10:14]} 12. Bb2 {[%emt 0:11:35]} bxc4 {[%emt 0:01:32]} 13. Bxc4 {[%emt 0:00:12]} h5 {[%emt 0:00:30]} 14. Nd4 {[%emt 0:07:11]} Qb8 {[%emt 0:02:06]} 15. f4 {[%emt 0:01:14]} h4 {[%emt 0:08:12]} 16. Qd3 {[%emt 0:04:03]} hxg3 {[%emt 0:01:22]} 17. hxg3 {[%emt 0:00:02]} Bb7 {[%emt 0:00:51]} 18. Rae1 {[%emt 0:02:24]} Qc7 {[%emt 0:03:22]} 19. Re2 {[%emt 0:13:45]} Qc5 {[%emt 0:07:42]} 20. Na4 {[%emt 0:05:24]} Qh5 {[%emt 0:01:45]} 21. Nf5 {[%emt 0:04:39]} exf5 {[%emt 0:06:06]} 22. exf5+ {[%emt 0:00:06]} Ne5 {[%emt 0:10:33]} 23. Qxd6 {[%emt 0:12:13]} Qh1+ {[%emt 0:00:06]} 24. Kf2 {[%emt 0:00:12]} Qxf1+ {[%emt 0:00:04]} 25. Kxf1 {[%emt 0:00:16]} Rh1+ {[%emt 0:00:04]} 26. Kf2 {[%emt 0:00:07]} Nfg4# {[%emt 0:00:04]} 0-1

[Event "5th EKA IIFL Investment 2019"]
[Site "Mumbai"]
[Date "2019.12.30"]
[Round "1.19"]
[White "Lugovskoy, Maxim"]
[Black "Praveen Kumar C"]
[Result "1-0"]
[ECO "B51"]
[WhiteElo "2466"]
[BlackElo "2199"]
[Annotator "ChessBase"]
[PlyCount "99"]
[EventDate "2019.12.30"]
[EventType "swiss"]
[EventCountry "IND"]
[SourceTitle "playchess.com"]
[Source "ChessBase"]
[SourceQuality "1"]
[TimeControl "40/5400+30:1800+30"]

1. e4 {[%emt 0:00:46]} c5 {[%emt 0:00:00]} 2. Nf3 {[%emt 0:00:11]} d6 {[%emt 0:00:00]} 3. Bb5+ {[%emt 0:00:41]} Nd7 {[%emt 0:00:06]} 4. d4 {[%emt 0:00:05]} cxd4 {[%emt 0:00:06]} 5. Qxd4 {[%emt 0:00:06]} a6 {[%emt 0:00:12]} 6. Bxd7+ {[%emt 0:00:08]} Bxd7 {[%emt 0:00:06]} 7. c4 {[%emt 0:00:03]} Nf6 {[%emt 0:00:48]} 8. Nc3 {[%emt 0:00:28]} e6 {[%emt 0:00:20]} 9. O-O {[%emt 0:00:25]} Be7 {[%emt 0:02:50]} 10. a4 {[%emt 0:07:54]} O-O {[%emt 0:02:39]} 11. Bg5 {[%emt 0:03:35]} Qc7 {[%emt 0:01:56]} 12. Rfd1 {[%emt 0:01:51]} Rfd8 {[%emt 0:00:45]} 13. b3 {[%emt 0:00:52]} Bc6 {[%emt 0:00:55]} 14. a5 {[%emt 0:12:48]} Rac8 {[%emt 0:11:10]} 15. h3 {[%emt 0:16:24]} h6 {[%emt 0:20:16]} 16. Bh4 {[%emt 0:02:06]} Rb8 {[%emt 0:03:03]} 17. Rdc1 {[%emt 0:02:22]} Be8 {[%emt 0:02:12]} 18. Qe3 {[%emt 0:06:55]} b6 {[%emt 0:03:59]} 19. axb6 {[%emt 0:01:36]} Rxb6 {[%emt 0:01:11]} 20. Rab1 Rdb8 {[%emt 0:02:37]} 21. c5 {[%emt 0:09:55]} Rxb3 {[%emt 0:19:33]} 22. Rxb3 {[%emt 0:01:10]} Rxb3 {[%emt 0:02:02]} 23. Nd5 {[%emt 0:02:35]} exd5 {[%emt 0:01:48]} 24. Qxb3 {[%emt 0:00:04]} dxe4 {[%emt 0:00:38]} 25. Nd4 {[%emt 0:00:03]} dxc5 {[%emt 0:03:10]} 26. Nf5 {[%emt 0:00:01]} Bf8 {[%emt 0:02:21]} 27. Nxh6+ {[%emt 0:10:28]} gxh6 {[%emt 0:07:09]} 28. Bxf6 {[%emt 0:00:35]} Qf4 {[%emt 0:00:30]} 29. Bb2 {[%emt 0:01:46]} Bd6 {[%emt 0:01:58]} 30. g3 {[%emt 0:00:03]} Qf5 {[%emt 0:01:12]} 31. Rd1 {[%emt 0:00:52]} Be7 {[%emt 0:00:29]} 32. Re1 {[%emt 0:03:54]} Bc6 {[%emt 0:00:42]} 33. Qb8+ {[%emt 0:02:27]} Bf8 {[%emt 0:00:13]} 34. Qe5 {[%emt 0:03:41]} Qxe5 {[%emt 0:01:23]} 35. Bxe5 {[%emt 0:00:02]} c4 {[%emt 0:00:14]} 36. Rd1 {[%emt 0:00:24]} f5 {[%emt 0:01:58]} 37. Rd8 {[%emt 0:01:45]} Kf7 {[%emt 0:00:09]} 38. Rc8 {[%emt 0:00:28]} Bb5 {[%emt 0:00:34]} 39. Bc3 {[%emt 0:00:20]} Bd6 {[%emt 0:02:21]} 40. Kf1 {[%emt 0:00:00]} f4 {[%emt 0:00:00]} 41. g4 {[%emt 0:02:14]} f3 {[%emt 0:03:46]} 42. Ke1 {[%emt 0:00:30]} a5 {[%emt 0:00:45]} 43. Bxa5 {[%emt 0:00:39]} e3 {[%emt 0:00:16]} 44. Bc3 h5 45. gxh5 {[%emt 0:06:40]} Bd7 {[%emt 0:07:56]} 46. Rd8 {[%emt 0:00:30]} exf2+ {[%emt 0:01:10]} 47. Kxf2 {[%emt 0:00:08]} Bc5+ {[%emt 0:00:05]} 48. Kxf3 {[%emt 0:00:06]} Bxh3 {[%emt 0:00:04]} 49. h6 {[%emt 0:00:04]} Bf5 {[%emt 0:00:20]} 50. Rd5 {[%emt 0:00:07]} 1-0

[Event "5th EKA IIFL Investment 2019"]
[Site "Mumbai"]
[Date "2019.12.30"]
[Round "1.20"]
[White "Aradhya, Garg"]
[Black "Neverov, Valeriy"]
[Result "0-1"]
[ECO "B90"]
[WhiteElo "2197"]
[BlackElo "2460"]
[Annotator "ChessBase"]
[PlyCount "74"]
[EventDate "2019.12.30"]
[EventType "swiss"]
[EventCountry "IND"]
[SourceTitle "playchess.com"]
[Source "ChessBase"]
[SourceQuality "1"]
[TimeControl "40/5400+30:1800+30"]

1. e4 {[%emt 0:00:00]} c5 {[%emt 0:00:00]} 2. Nc3 {[%emt 0:00:07]} d6 {[%emt 0:00:07]} 3. Nf3 {[%emt 0:00:09]} Nf6 {[%emt 0:03:15]} 4. d4 {[%emt 0:06:50]} cxd4 {[%emt 0:00:08]} 5. Nxd4 {[%emt 0:00:02]} a6 {[%emt 0:01:50]} 6. Bd3 {[%emt 0:08:17]} g6 {[%emt 0:02:59]} 7. Be3 {[%emt 0:06:55]} Ng4 {[%emt 0:03:52]} 8. Bg5 {[%emt 0:03:46]} Bg7 {[%emt 0:12:59]} 9. Nb3 {[%emt 0:20:34]} Nc6 {[%emt 0:08:49]} 10. Qd2 {[%emt 0:05:56]} h6 {[%emt 0:05:18]} 11. Bh4 {[%emt 0:04:14]} Be6 {[%emt 0:06:23]} 12. f4 {[%emt 0:12:26]} Qb6 {[%emt 0:13:15]} 13. h3 {[%emt 0:17:51]} Qe3+ {[%emt 0:01:11]} 14. Be2 {[%emt 0:00:32]} Qxd2+ {[%emt 0:00:59]} 15. Kxd2 {[%emt 0:00:02]} Nf6 {[%emt 0:00:11]} 16. Rad1 {[%emt 0:03:58]} O-O {[%emt 0:16:35]} 17. Ke3 {[%emt 0:05:27]} Rfc8 {[%emt 0:03:01]} 18. a3 {[%emt 0:00:48]} Nd7 {[%emt 0:03:52]} 19. Bg4 {[%emt 0:00:50]} Nb6 {[%emt 0:06:49]} 20. f5 {[%emt 0:00:23]} Bd7 {[%emt 0:03:25]} 21. f6 {[%emt 0:00:30]} Bxg4 {[%emt 0:00:33]} 22. hxg4 {[%emt 0:00:04]} exf6 {[%emt 0:00:10]} 23. Kf2 {[%emt 0:01:16]} Ne5 {[%emt 0:00:49]} 24. Na5 {[%emt 0:00:23]} Nxg4+ {[%emt 0:01:42]} 25. Ke2 {[%emt 0:00:30]} Nc4 {[%emt 0:02:14]} 26. Nxc4 {[%emt 0:00:05]} Rxc4 {[%emt 0:00:02]} 27. Rxd6 {[%emt 0:00:11]} Re8 {[%emt 0:00:39]} 28. Rhd1 {[%emt 0:00:16]} Rcc8 {[%emt 0:01:07]} 29. Kd2 {[%emt 0:01:26]} g5 {[%emt 0:00:53]} 30. Bg3 {[%emt 0:00:01]} f5 {[%emt 0:00:13]} 31. exf5 {[%emt 0:01:08]} Bxc3+ {[%emt 0:00:58]} 32. bxc3 {[%emt 0:00:02]} Ne3 {[%emt 0:00:09]} 33. Rxh6 {[%emt 0:00:57]} Rcd8+ {[%emt 0:00:18]} 34. Bd6 {[%emt 0:00:02]} Nxf5 {[%emt 0:00:48]} 35. Rdh1 {[%emt 0:00:11]} Nxh6 {[%emt 0:00:06]} 36. Rxh6 {[%emt 0:00:01]} Re6 {[%emt 0:00:10]} 37. Rxe6 {[%emt 0:00:04]} fxe6 {[%emt 0:00:05]} 0-1

[Event "5th EKA IIFL Investment 2019"]
[Site "Mumbai"]
[Date "2019.12.30"]
[Round "1.21"]
[White "Krishna C R G"]
[Black "Jubin Jimmy"]
[Result "1-0"]
[ECO "A40"]
[WhiteElo "2459"]
[BlackElo "2193"]
[Annotator "ChessBase"]
[PlyCount "57"]
[EventDate "2019.12.30"]
[EventType "swiss"]
[EventCountry "IND"]
[SourceTitle "playchess.com"]
[Source "ChessBase"]
[SourceQuality "1"]
[TimeControl "40/5400+30:1800+30"]

1. d4 {[%emt 0:00:00]} Nf6 {[%emt 0:00:00]} 2. c4 {[%emt 0:00:00]} e6 {[%emt 0:00:00]} 3. g3 {[%emt 0:00:05]} d5 {[%emt 0:00:48]} 4. Nf3 {[%emt 0:00:07]} Bb4+ {[%emt 0:00:35]} 5. Bd2 {[%emt 0:00:04]} Be7 {[%emt 0:00:07]} 6. Bg2 {[%emt 0:00:06]} O-O {[%emt 0:01:27]} 7. O-O {[%emt 0:00:05]} Nbd7 {[%emt 0:00:33]} 8. Qc2 {[%emt 0:01:09]} c6 {[%emt 0:00:50]} 9. Rc1 {[%emt 0:00:43]} b6 {[%emt 0:01:41]} 10. a4 {[%emt 0:00:07]} Ba6 {[%emt 0:03:06]} 11. b3 {[%emt 0:03:58]} Qb8 {[%emt 0:09:19]} 12. Na3 {[%emt 0:10:34]} Rc8 {[%emt 0:02:25]} 13. b4 {[%emt 0:08:01]} Ne4 {[%emt 0:02:42]} 14. Be1 {[%emt 0:00:23]} h6 {[%emt 0:13:01]} 15. Rab1 {[%emt 0:06:34]} Bb7 {[%emt 0:01:45]} 16. Qb3 {[%emt 0:02:19]} a6 {[%emt 0:03:01]} 17. Nd2 {[%emt 0:04:39]} Nxd2 {[%emt 0:05:31]} 18. Bxd2 {[%emt 0:01:13]} Nf6 {[%emt 0:11:26]} 19. Bf4 {[%emt 0:06:40]} Bd6 {[%emt 0:03:06]} 20. Bxd6 {[%emt 0:00:08]} Qxd6 {[%emt 0:00:02]} 21. c5 {[%emt 0:00:17]} Qd8 {[%emt 0:00:01]} 22. cxb6 {[%emt 0:01:30]} Qxb6 {[%emt 0:01:28]} 23. Qc3 {[%emt 0:03:25]} Re8 {[%emt 0:02:29]} 24. Nc2 {[%emt 0:03:45]} e5 {[%emt 0:01:19]} 25. dxe5 {[%emt 0:00:18]} Ng4 {[%emt 0:00:40]} 26. Qc5 {[%emt 0:01:39]} Qxc5 {[%emt 0:03:34]} 27. bxc5 {[%emt 0:00:05]} Bc8 {[%emt 0:00:01]} 28. f4 {[%emt 0:00:44]} Bf5 {[%emt 0:00:17]} 29. e4 {[%emt 0:01:00]} 1-0

[Event "5th EKA IIFL Investment 2019"]
[Site "Mumbai"]
[Date "2019.12.30"]
[Round "1.22"]
[White "Masango, Spencer"]
[Black "Mirzoev, Azer"]
[Result "0-1"]
[ECO "A06"]
[WhiteElo "2181"]
[BlackElo "2457"]
[Annotator "ChessBase"]
[PlyCount "84"]
[EventDate "2019.12.30"]
[EventType "swiss"]
[EventCountry "IND"]
[SourceTitle "playchess.com"]
[Source "ChessBase"]
[SourceQuality "1"]
[TimeControl "40/5400+30:1800+30"]

1. Nf3 {[%emt 0:00:03]} d5 {[%emt 0:00:08]} 2. g3 {[%emt 0:03:49]} c6 {[%emt 0:00:28]} 3. Bg2 {[%emt 0:00:09]} Bg4 {[%emt 0:00:08]} 4. h3 {[%emt 0:00:20]} Bh5 {[%emt 0:00:05]} 5. O-O {[%emt 0:00:08]} Nd7 {[%emt 0:00:03]} 6. d3 {[%emt 0:00:40]} e5 {[%emt 0:00:24]} 7. c4 {[%emt 0:02:15]} dxc4 {[%emt 0:01:14]} 8. dxc4 {[%emt 0:00:20]} Ngf6 {[%emt 0:00:28]} 9. Nc3 {[%emt 0:06:38]} Qc7 {[%emt 0:00:25]} 10. Be3 {[%emt 0:01:46]} Bc5 {[%emt 0:02:52]} 11. Qd2 {[%emt 0:01:09]} O-O {[%emt 0:00:34]} 12. Bxc5 {[%emt 0:01:22]} Nxc5 {[%emt 0:00:19]} 13. Qe3 {[%emt 0:00:50]} Nfd7 {[%emt 0:01:06]} 14. Rad1 {[%emt 0:13:36]} f5 {[%emt 0:09:28]} 15. b4 {[%emt 0:08:49]} Ne6 {[%emt 0:00:08]} 16. Qd2 {[%emt 0:02:13]} Rf7 {[%emt 0:14:48]} 17. Ng5 {[%emt 0:07:57]} Nxg5 {[%emt 0:01:13]} 18. Qxg5 {[%emt 0:00:06]} Bg6 {[%emt 0:00:39]} 19. h4 {[%emt 0:10:38]} Nf8 {[%emt 0:10:18]} 20. h5 {[%emt 0:04:04]} h6 {[%emt 0:00:10]} 21. Qh4 {[%emt 0:00:19]} Bh7 {[%emt 0:00:06]} 22. c5 {[%emt 0:06:12]} Rf6 {[%emt 0:06:15]} 23. Qc4+ {[%emt 0:02:42]} Kh8 {[%emt 0:00:13]} 24. b5 {[%emt 0:02:36]} Bg8 {[%emt 0:00:55]} 25. Qb4 {[%emt 0:00:44]} a5 {[%emt 0:05:09]} 26. Qa3 {[%emt 0:05:14]} e4 {[%emt 0:01:43]} 27. Rd6 {[%emt 0:00:55]} Ne6 {[%emt 0:24:24]} 28. bxc6 {[%emt 0:03:11]} bxc6 {[%emt 0:00:07]} 29. g4 {[%emt 0:00:23]} Nf4 {[%emt 0:00:53]} 30. Rfd1 {[%emt 0:03:13]} Qe7 {[%emt 0:05:19]} 31. Qc1 {[%emt 0:03:38]} fxg4 {[%emt 0:00:25]} 32. Rxf6 {[%emt 0:01:01]} Qxf6 {[%emt 0:00:14]} 33. Nxe4 {[%emt 0:03:13]} Nxe2+ {[%emt 0:01:49]} 34. Kf1 {[%emt 0:00:22]} Nxc1 {[%emt 0:00:11]} 35. Nxf6 {[%emt 0:00:10]} Bc4+ {[%emt 0:00:16]} 36. Ke1 {[%emt 0:00:36]} Nd3+ {[%emt 0:00:10]} 37. Rxd3 {[%emt 0:00:50]} Bxd3 {[%emt 0:00:05]} 38. Nxg4 {[%emt 0:00:22]} Re8+ {[%emt 0:00:32]} 39. Kd2 {[%emt 0:02:22]} Be4 {[%emt 0:00:05]} 40. f3 {[%emt 0:00:00]} Bd5 {[%emt 0:00:00]} 41. a3 {[%emt 0:01:30]} Rb8 {[%emt 0:01:18]} 42. Kc2 {[%emt 0:00:36]} Rb5 {[%emt 0:00:39]} 0-1

[Event "5th EKA IIFL Investment 2019"]
[Site "Mumbai"]
[Date "2019.12.30"]
[Round "1.23"]
[White "Nguyen, Van Huy"]
[Black "Gandhi, Anish"]
[Result "0-1"]
[ECO "D85"]
[WhiteElo "2457"]
[BlackElo "2168"]
[Annotator "ChessBase"]
[PlyCount "52"]
[EventDate "2019.12.30"]
[EventType "swiss"]
[EventCountry "IND"]
[SourceTitle "playchess.com"]
[Source "ChessBase"]
[SourceQuality "1"]
[TimeControl "40/5400+30:1800+30"]

1. d4 {[%emt 0:00:02]} Nf6 {[%emt 0:00:00]} 2. c4 {[%emt 0:00:20]} g6 {[%emt 0:00:00]} 3. Nc3 {[%emt 0:00:19]} d5 {[%emt 0:00:06]} 4. cxd5 {[%emt 0:00:22]} Nxd5 {[%emt 0:00:05]} 5. Bd2 {[%emt 0:00:14]} Nb6 {[%emt 0:00:52]} 6. e4 {[%emt 0:00:33]} Qxd4 {[%emt 0:00:15]} 7. Qc2 {[%emt 0:00:33]} Nc6 {[%emt 0:00:13]} 8. Nf3 {[%emt 0:02:17]} Qc5 {[%emt 0:00:34]} 9. Rc1 {[%emt 0:06:40]} Bg7 {[%emt 0:04:40]} 10. Nb5 {[%emt 0:11:11]} Qxc2 {[%emt 0:01:06]} 11. Rxc2 {[%emt 0:00:07]} O-O {[%emt 0:01:20]} 12. Nxc7 {[%emt 0:03:21]} Rb8 {[%emt 0:00:24]} 13. Be3 {[%emt 0:02:37]} Nb4 {[%emt 0:03:45]} 14. Rd2 {[%emt 0:02:33]} Bg4 {[%emt 0:07:27]} 15. a3 {[%emt 0:13:49]} Rbc8 {[%emt 0:03:02]} 16. Bf4 {[%emt 0:01:55]} Nc6 {[%emt 0:03:32]} 17. Nb5 {[%emt 0:21:19]} Na4 {[%emt 0:02:03]} 18. Rc2 {[%emt 0:06:21]} Nxb2 {[%emt 0:07:08]} 19. Be2 {[%emt 0:03:32]} Bxf3 {[%emt 0:10:45]} 20. gxf3 {[%emt 0:01:25]} Na4 {[%emt 0:10:59]} 21. Bd1 {[%emt 0:03:51]} a6 {[%emt 0:02:41]} 22. Nc7 {[%emt 0:00:09]} Nc3 {[%emt 0:08:41]} 23. O-O {[%emt 0:04:50]} Nxd1 {[%emt 0:03:48]} 24. Rxd1 {[%emt 0:00:51]} e5 {[%emt 0:00:13]} 25. Rd7 {[%emt 0:00:02]} exf4 {[%emt 0:01:07]} 26. Nd5 {[%emt 0:00:04]} Rb8 {[%emt 0:00:51]} 0-1

[Event "5th EKA IIFL Investment 2019"]
[Site "Mumbai"]
[Date "2019.12.30"]
[Round "1.24"]
[White "Manish Kumar"]
[Black "Shyaamnikhil P"]
[Result "1/2-1/2"]
[ECO "B28"]
[WhiteElo "2168"]
[BlackElo "2455"]
[Annotator "ChessBase"]
[PlyCount "113"]
[EventDate "2019.12.30"]
[EventType "swiss"]
[EventCountry "IND"]
[SourceTitle "playchess.com"]
[Source "ChessBase"]
[SourceQuality "1"]
[TimeControl "40/5400+30:1800+30"]

1. e4 {[%emt 0:00:00]} c5 {[%emt 0:00:00]} 2. Nf3 {[%emt 0:00:00]} a6 {[%emt 0:00:13]} 3. c4 {[%emt 0:02:15]} e6 {[%emt 0:00:39]} 4. Nc3 {[%emt 0:00:56]} Qc7 {[%emt 0:00:09]} 5. a3 {[%emt 0:03:29]} Nf6 {[%emt 0:00:29]} 6. d4 {[%emt 0:01:29]} cxd4 {[%emt 0:00:12]} 7. Nxd4 {[%emt 0:00:02]} b6 {[%emt 0:01:29]} 8. Be3 {[%emt 0:05:04]} Bb7 {[%emt 0:00:11]} 9. f3 {[%emt 0:01:13]} d6 {[%emt 0:01:58]} 10. Be2 {[%emt 0:03:04]} Nbd7 {[%emt 0:00:11]} 11. Rc1 {[%emt 0:00:06]} Rc8 {[%emt 0:00:05]} 12. O-O {[%emt 0:00:07]} Be7 {[%emt 0:01:43]} 13. Qd2 {[%emt 0:07:21]} Qb8 {[%emt 0:00:21]} 14. b4 {[%emt 0:00:38]} O-O {[%emt 0:03:25]} 15. Rfd1 {[%emt 0:00:21]} Rfe8 {[%emt 0:09:18]} 16. Nb3 {[%emt 0:04:02]} Bf8 {[%emt 0:01:40]} 17. Bf4 {[%emt 0:05:08]} Ne5 {[%emt 0:01:11]} 18. Bxe5 {[%emt 0:01:14]} dxe5 {[%emt 0:00:07]} 19. Qe3 {[%emt 0:00:10]} Bc6 {[%emt 0:04:56]} 20. c5 {[%emt 0:01:00]} bxc5 {[%emt 0:00:59]} 21. Nxc5 {[%emt 0:05:34]} Qb6 {[%emt 0:09:51]} 22. Qf2 {[%emt 0:03:44]} a5 {[%emt 0:02:15]} 23. Rb1 {[%emt 0:03:40]} Red8 {[%emt 0:02:31]} 24. Rxd8 {[%emt 0:01:44]} Rxd8 {[%emt 0:00:46]} 25. Na6 {[%emt 0:15:57]} Qd4 {[%emt 0:04:34]} 26. Rd1 {[%emt 0:01:18]} Qxf2+ {[%emt 0:00:13]} 27. Kxf2 {[%emt 0:00:01]} Rxd1 {[%emt 0:12:11]} 28. Bxd1 {[%emt 0:02:33]} Bb7 {[%emt 0:01:01]} 29. Nc5 {[%emt 0:06:58]} Bxc5+ {[%emt 0:00:09]} 30. bxc5 {[%emt 0:00:01]} Nd7 {[%emt 0:00:07]} 31. Na4 {[%emt 0:00:03]} f6 {[%emt 0:04:38]} 32. Nb6 {[%emt 0:01:44]} Nxb6 {[%emt 0:15:33]} 33. cxb6 {[%emt 0:00:02]} Kf7 {[%emt 0:00:08]} 34. Ke3 {[%emt 0:00:31]} Ke7 {[%emt 0:00:16]} 35. Ba4 {[%emt 0:00:48]} Kd6 {[%emt 0:00:30]} 36. Kd2 {[%emt 0:00:17]} Kc5 {[%emt 0:04:48]} 37. Bd7 {[%emt 0:00:05]} Kxb6 {[%emt 0:00:04]} 38. Bxe6 {[%emt 0:00:03]} Kc5 {[%emt 0:00:05]} 39. Kc3 {[%emt 0:00:06]} Ba6 {[%emt 0:00:06]} 40. g3 {[%emt 0:00:00]} Be2 {[%emt 0:00:00]} 41. f4 {[%emt 0:01:46]} Ba6 {[%emt 0:04:00]} 42. fxe5 {[%emt 0:00:46]} fxe5 {[%emt 0:00:07]} 43. Bg8 {[%emt 0:00:10]} h6 {[%emt 0:00:15]} 44. Bd5 {[%emt 0:00:34]} Bc8 {[%emt 0:00:24]} 45. Ba8 {[%emt 0:00:17]} Be6 {[%emt 0:00:33]} 46. Bb7 {[%emt 0:00:07]} Kb5 {[%emt 0:00:11]} 47. Ba8 {[%emt 0:01:11]} Ka4 {[%emt 0:00:42]} 48. Kb2 {[%emt 0:00:04]} Kb5 {[%emt 0:00:07]} 49. Kc3 {[%emt 0:00:04]} Kb6 {[%emt 0:01:54]} 50. Kd3 {[%emt 0:01:23]} Kc5 {[%emt 0:01:27]} 51. Kc3 {[%emt 0:00:03]} g5 {[%emt 0:01:43]} 52. Bb7 {[%emt 0:00:37]} Kb6 {[%emt 0:02:11]} 53. Ba8 {[%emt 0:00:05]} Kc5 {[%emt 0:00:06]} 54. Bb7 {[%emt 0:00:03]} Kb6 {[%emt 0:00:11]} 55. Ba8 {[%emt 0:00:02]} Kc5 {[%emt 0:00:07]} 56. Bb7 {[%emt 0:00:03]} Kb6 {[%emt 0:00:06]} 57. Ba8 {[%emt 0:00:04]} 1/2-1/2